Workbook

Sheet 一利五率
B1: 一利五率情况
B2: 项目 | D2: 2023年 | E2: 上年同期金额 | F2: 同比增加%
B4: 营业收入 | D4: 32462 | E4: 26458 | F4: 0.2269
B5: 一利 | C5: 利润总额 | D5: 938 | E5: 1281 | F5: -0.2678
B6: 五率 | C6: 营业现金比率 | D6: -0.5312 | E6: -0.171 | F6: -0.3602
C7: 资产负债率 | D7: 0.9612 | E7: 1.0012 | F7: -0.04
C8: 全员劳动生产率 | D8: 11 | E8: 17.08 | F8: -0.356
C9: 净资产收益率 | D9: 0.2311 | E9: -8.8113 | F9: 9.0424
C10: 成本费用营收比率 | D10: 0.9678 | E10: 0.9513 | F10: 0.0165

Sheet 经营情况
A1: 1-9月公司经营情况
A2: 序号 | B2: 部门 | C2: 营业收入 | D2: 营业成本 | E2: 税金及附加 | F2: 研发费用 | G2: 安全生产费 | H2: 管理费用 | I2: 财务费用 | J2: 营业外收入 | K2: 营业外支出 | L2: 利润总额 | M2: 所得税 | N2: 净利润 | O2: 利润率
A3: 1 | B3: 公司 | C3: 2656.21 | D3: 2278.32 | E3: 21.21 | F3: 190.75 | G3: 2.16 | H3: 905.83 | I3: -57.94 | J3: 1.45 | K3: 109.25 | L3: =C3-D3-E3-F3-G3-H3-I3+J3-K3 -> -791.92 | M3: 227.62 | N3: =L3-M3 -> -1019.54 | O3: =N3/C3 -> -0.3838326036
A4: 2 | B4: 一分公司 | C4: 5109.586385 | D4: 4613.020202 | E4: 23.247073 | F4: 132.121335 | G4: 1.022758 | J4: 1 | L4: =C4-D4-E4-F4-G4-H4-I4+J4-K4 -> 341.175017 | N4: =L4-M4 -> 341.175017 | O4: =N4/C4 -> 0.06677155278
A5: 3 | B5: 二分公司 | C5: 1613.1 | D5: 1538.62 | E5: 6.77 | F5: 7.1 | G5: 0.49 | L5: =C5-D5-E5-F5-G5-H5-I5+J5-K5 -> 60.12 | N5: 60.12 | O5: 0.03726985308
A6: 4 | B6: 三分公司 | C6: 1227.705524 | D6: 834.4304 | E6: 6.844971 | F6: 222.4819 | L6: 163.948253 | N6: 163.948253 | O6: 0.1335403725
A7: 5 | B7: 直属分公司 | C7: 14648.38 | D7: 13759.72 | E7: 34.62 | F7: 78.78 | G7: 0.94 | L7: 774.32 | N7: 774.32 | O7: 0.05286045283
A8: 6 | B8: 环保新能源分公司 | C8: 109.245615 | D8: 108.982242 | E8: 1.07403 | F8: 0 | L8: -0.810657 | N8: -0.810657 | O8: -0.007420499212
A9: 7 | B9: 宾县分公司 | C9: 5928.827442 | D9: 5521.003905 | E9: 32.670864 | F9: 33.289964 | G9: 3.3767 | I9: -6.25 | K9: 0.35 | L9: 344.386009 | N9: 344.386009 | O9: 0.05808669798
A10: 8 | B10: 松北分公司 | C10: 49.584713 | D10: 49.198606 | E10: 0.346052 | F10: 0 | I10: -19.32 | K10: 0.04 | L10: 19.320055 | N10: 19.320055 | O10: 0.3896373263
A11: 9 | B11: 新区子公司 | C11: 1437.489385 | D11: 1367.345599 | E11: 3.43 | F11: 0 | G11: 2.10055 | H11: 40.37 | I11: -3.19 | L11: 27.433236 | M11: 1.6 | N11: 25.833236 | O11: 0.01797107949
A12: 10 | B12: 华光 | I12: 0.04 | L12: -0.04 | N12: -0.04
B13: 合并抵销差额 | C13: 318.01 | D13: 318.01 | L13: 0 | N13: 0
B14: 合 计 | C14: =C3+C4+C5+C6+C7+C8+C9+C10+C11-C13 -> 32462.11906 | D14: =D3+D4+D5+D6+D7+D8+D9+D10+D11-D13 -> 29752.63095 | E14: =SUM(E3:E13) -> 130.21299 | F14: 664.523199 | G14: 10.090008 | H14: 946.2 | I14: -86.66 | J14: 2.45 | K14: 109.64 | L14: =SUM(L3:L13) -> 937.931913 | M14: 229.22 | N14: =L14-M14 -> 708.711913 | O14: =N14/C14 -> 0.02183196703

Sheet 成本费用
A1: 工程项目成本情况明细表
A2: 部门 | B2: 序号 | C2: 项目 | D2: 人工费 | E2: 材料费 | F2: 机械费 | G2: 其他直接费 | H2: 间接费 | I2: 研发费用 | J2: 安全生产费 | K2: 合计 | L2: 暂估余额
A4: 公司 | B4: 1 | C4: 哈尔滨市向阳生活垃圾处理场管理养护项目 | D4: 201.56 | E4: 9.25 | F4: 53.24 | G4: 188.5 | H4: 124.38 | K4: =SUM(D4:J4) -> 576.93
B5: 2 | C5: 哈尔滨市玉泉固体废物综合处理园区垃圾焚烧发电项目附属工程建筑工程 | G5: 443.36 | H5: 1.47 | K5: =SUM(D5:J5) -> 444.83
B6: 3 | C6: 黄家崴子路（第一标段）HDPE污水管线抢险工程（亮圈湖鱼池新增40米） | E6: 9.76 | H6: 1.7 | K6: 11.46
B7: 4 | C7: 哈尔滨综合保税区二期基础设施道路围网工程施工第一标段 | G7: 32.11 | H7: 10.02 | K7: 42.13
B8: 5 | C8: 2017年政府购买服务排水工程项目包 | D8: 113.34 | F8: 50.48 | H8: 30.44 | J8: 0.5 | K8: 194.76
B9: 6 | C9: 哈尔滨市玉泉固体废物综合处理园区垃圾焚烧发电项目截洪排水工程项目 | D9: 33.7 | E9: 17.37 | F9: 41.36 | G9: 1.62 | H9: 2.11 | K9: 96.16
B10: 7 | C10: 哈尔滨市松北区和呼兰区生活垃圾焚烧发电厂项目填埋场三区及附属设施工程 | D10: 2.74 | H10: 0.01 | K10: 2.75
B11: 8 | C11: 2019老旧吃水难小区二次供水设施维修改造工程 | D11: 2.08 | F11: 49.54 | G11: 0.09 | H11: 0.98 | K11: 52.69
B12: 9 | C12: 哈西客站北广场区域土方防洪抢险工程6#地块 | F12: 364.76 | H12: 17.46 | K12: 382.22
B13: 10 | C13: 机场高速长岭湖交通枢纽扩建工程施工 | E13: 39.67 | G13: 14.54 | H13: 6.97 | K13: 61.18
B14: 11 | C14: 腾飞路、鲜明街、新立西街、电石厂北路道路及附属设施项目工程二标段 | D14: 40.44 | E14: 181.49 | F14: 88.99 | G14: 9.2 | H14: 19.99 | J14: 1.43 | K14: 341.54 | L14: 40.436893
B15: 12 | C15: 哈尔滨市运达鸿升汽车有限公司（滨河大道）排水支线工程 | D15: 1.88 | E15: 5.99 | F15: 0.85 | G15: 0 | H15: 1.53 | I15: 0 | J15: 0 | K15: 10.25
B16: 13 | C16: 中国联通（哈南十五路）排水支线工程 | D16: 0 | E16: 5.83 | F16: 0.57 | G16: 0 | H16: 1.12 | I16: 0 | J16: 0 | K16: 7.52
B17: 14 | C17: 哈南第十二大道雨水、哈南十一污水（哈加孵化器）支线工程 | E17: 2.19 | F17: 0.21 | G17: 0 | H17: 0.42 | I17: 0 | J17: 0 | K17: 2.82
B18: 15 | C18: 长河特种涂料厂道口工程 | D18: 2.1 | E18: 6.63 | F18: 0.99 | G18: 0 | H18: 1.7 | I18: 0 | J18: 0 | K18: 11.42
B19: 16 | C19: 对青鹅业排水支线工程 | D19: 0.58 | E19: 1.94 | F19: 0.28 | G19: 0 | H19: 0.5 | I19: 0 | J19: 0 | K19: 3.3
B20: 17 | C20: 哈尔滨谊远置业有限公司开设道口工程 | D20: 1.74 | E20: 5.5 | F20: 0.85 | G20: 0 | H20: 1.42 | I20: 0 | J20: 0 | K20: 9.51
B21: 18 | C21: 哈尔滨工大焊接科技有限公司排水支线工程 | D21: 1.36 | E21: 4.35 | F21: 0.56 | G21: 0 | H21: 1.1 | I21: 0 | J21: 0 | K21: 7.37
B22: 19 | C22: 哈尔滨市道外区民主乡农业示范区公路A2标段 | D22: 3.92 | E22: 12.24 | F22: 1.77 | G22: 0 | H22: 3.14 | I22: 0 | J22: 0 | K22: 21.07
C23: 公司 | G23: 0.34 | I23: 190.75 | J23: 0.23 | K23: 191.32
C24: 小 计 | D24: =SUM(D4:D23) -> 405.44 | E24: =SUM(E4:E23) -> 302.21 | F24: 654.45 | G24: 689.76 | H24: 226.46 | I24: 190.75 | J24: 2.16 | K24: 2471.23 | L24: 40.436893
A25: 一分公司 | B25: 1 | C25: 东三环快速路工程施工（非涉铁部分）二标段项目 | D25: 734.741355 | E25: 850.042112 | F25: 201.30909 | G25: 294.039526 | H25: 39.319984 | I25: 96.512595 | K25: =SUM(D25:J25) -> 2215.964662 | L25: 55.433861
B26: 2 | C26: 哈东五号雨水泵站及配套管线工程施工 | D26: 159.631069 | E26: 75.578987 | F26: 57.805 | G26: 1.606109 | H26: 3.890903 | J26: 1.022758 | K26: =SUM(D26:J26) -> 299.534826 | L26: 144.276845
B27: 3 | C27: 2022年哈尔滨排水集团有限责任公司排水设施抢修抢险工程项目 | D27: 0 | E27: 9.410495 | F27: 0 | G27: 0 | H27: 0.228837 | K27: 9.639332
B28: 4 | C28: 哈尔滨利民经济开发区恒泰-悦璟府建设项目一期工程 | D28: 444.233811 | E28: 269.07954 | F28: 24.291261 | G28: 0 | H28: 6.822935 | K28: 744.427547
B29: 5 | C29: 水泥路雨水泵站及配套管线工程总承包 | D29: 275.612623 | E29: 161.74359 | F29: 808.828085 | G29: 88.789427 | H29: 29.705387 | I29: 35.60874 | K29: 1400.287852 | L29: 104.260932
B30: 6 | C30: 临空污水处理厂配套管线工程（污水管线）施工第三标段项目 | D30: 0 | E30: 0 | F30: 0 | G30: 42.112188 | H30: 2.481868 | K30: 44.594056
B31: 7 | C31: 哈尔滨排水集团有限责任公司2023年度排水设施抢修抢险施工 | D31: 12.320388 | E31: 0 | F31: 0 | G31: 1.994374 | H31: 0.172671 | K31: 14.487433 | L31: 12.320388
B32: 8 | C32: 黑龙江省哈尔滨市中国（黑龙江）自由贸易试验区哈尔滨片区基础设施建设项目一期--公园及街边绿地建设项目第四标段 | D32: 0 | E32: 0 | F32: 0 | G32: 7.314451 | H32: 0.189432 | K32: 7.503883
B33: 9 | C33: 马家沟截流方渠（利材街-东灌泵站）排水系统完善工程第二标段项目 | D33: 0 | E33: 0 | F33: 0 | G33: 1.503208 | H33: 0.015452 | K33: 1.51866
B34: 10 | C34: 黑龙江省哈尔滨市平房区哈尔滨合力投资控股有限公司2023年供热老旧管网改造工程项目施工（一标段） | D34: 0 | E34: 0 | F34: 0 | G34: 8.122548 | H34: 0.083496 | K34: 8.206044
C35: 小 计 | D35: =SUM(D25:D34) -> 1626.539246 | E35: =SUM(E25:E34) -> 1365.854724 | F35: 1092.233436 | G35: 445.481831 | H35: 82.910965 | I35: 132.121335 | J35: 1.022758 | K35: 4746.164295 | L35: 316.292026
A36: 二分公司 | B36: 1 | C36: 哈尔滨综合保税区标准化仓库二期工程三标段、四标段施工项目（三标段） | E36: 86.18 | F36: 43.7 | G36: 36.6 | H36: 15.12 | I36: 7.1 | K36: =SUM(D36:J36) -> 188.7 | L36: 107.408392
B37: 2 | C37: 2021年度哈成路打通工程、哈东阿城园区规划九路工程、哈东阿城园区规划十一路工程、哈东阿城园区规划十二路工程施工（第五标段） | E37: 268.86 | F37: 87.29 | G37: 17.41 | H37: 26.86 | J37: 0.49 | K37: =SUM(D37:J37) -> 400.91
B38: 3 | C38: 润和城二期22#商服改造装修及弱电工程施工（一标段） | D38: 318.87 | E38: 482.33 | F38: 14.92 | G38: 14.59 | H38: 20.9 | K38: 851.61
B39: 4 | C39: 北岸众和城、北岸润和城外墙保温应急维修工程 | D39: 26.37 | E39: 11.35 | F39: 2.7 | G39: 0.23 | H39: 0.35 | K39: 41
B40: 5 | C40: 哈尔滨新区新材料产业园基础设施建设项目施工一批次 | G40: 21.6 | H40: 0.44 | K40: 22.04
B41: 6 | C41: 黑龙江省大江大河水文监测系统建设工程 | G41: 5.01 | H41: 0.1 | K41: 5.11
B42: 7 | C42: 哈尔滨市公共区域视频监控设备建设项目1.33万路建设项目施工 | D42: 13.93 | E42: 18.17 | F42: 4 | H42: 0.74 | K42: 36.84
C43: 小 计 | D43: =SUM(D36:D42) -> 359.17 | E43: =SUM(E36:E42) -> 866.89 | F43: 152.61 | G43: 95.44 | H43: 64.51 | I43: 7.1 | J43: 0.49 | K43: 1546.21 | L43: 107.408392
A44: 三分公司 | B44: 1 | C44: 哈尔滨新区利民片区排水设施和管网改造项目雪花路排水改造施工 | D44: 137.801943 | E44: 438.656041 | F44: 218.627522 | G44: 38.375931 | H44: 0.968981 | I44: 222.481945 | K44: =SUM(D44:J44) -> 1056.912363 | L44: 103.78
C45: 小 计 | D45: =SUM(D44:D44) -> 137.801943 | E45: =SUM(E44:E44) -> 438.656041 | F45: 218.627522 | G45: 38.375931 | H45: 0.968981 | I45: 222.481945 | J45: 0 | K45: 1056.912363 | L45: 103.78
A46: 直属分公司 | B46: 1 | C46: 哈尔滨市松花江水源上移输水管线顶目（四环以内部分）设计、施工工程1-9 | D46: 231.57 | E46: 2221.27 | F46: 289.39 | G46: 1.76 | H46: 7.22 | K46: =SUM(D46:J46) -> 2751.21
B47: 2 | C47: 哈尔滨市松花江水源上移及输水管线项目（四环以外部分）施工1-9 | D47: 768.6 | E47: 6358.18 | F47: 1126.96 | G47: 589.82 | H47: 28.78 | I47: 78.77 | K47: =SUM(D47:J47) -> 8951.11
B48: 3 | C48: 香坊区农村公路提质改造工程施工一期 | E48: 1876.66 | G48: 82.96 | H48: 1.59 | K48: =SUM(D48:J48) -> 1961.21
B49: 4 | C49: 何家沟流域雨污分流改造工程（一期工程、哈西大街周边区域、南兴街周边区域） | D49: 34.18 | E49: 74.15 | F49: 54.96 | G49: 11.53 | H49: 0.16 | J49: 0.94 | K49: =SUM(D49:J49) -> 175.92
C50: 小 计 | D50: =SUM(D46:D49) -> 1034.35 | E50: =SUM(E46:E49) -> 10530.26 | F50: 1471.31 | G50: 686.07 | H50: 37.75 | I50: 78.77 | J50: 0.94 | K50: 13839.45 | L50: 2413.27
A51: 环保新能源分公司 | B51: 1 | C51: 哈尔滨市公共区域视频监控设备建设项目1.33万路建设项目施工 | D51: 26.108738 | E51: 56.830695 | F51: 10.75 | H51: 9.306627 | K51: =SUM(D51:J51) -> 102.99606
B52: 2 | C52: 间接费 | H52: 5.986182 | K52: =SUM(D52:J52) -> 5.986182
C53: 小 计 | D53: =SUM(D51:D52) -> 26.108738 | E53: =SUM(E51:E52) -> 56.830695 | F53: 10.75 | G53: 0 | H53: 15.292809 | I53: 0 | J53: 0 | K53: 108.982242 | L53: 0
A54: 宾县分公司 | B54: 1 | C54: 国家级宾西经济技术开发区（宾县）松花江供水项目--输水管网工程施工第一标段 | D54: 551.314569 | E54: 2051.678663 | F54: 511.596185 | G54: 321.363926 | H54: 0.182754 | I54: 20.11709 | K54: =SUM(D54:J54) -> 3456.253187 | L54: 185.006131
B55: 2 | C55: 黑龙江省哈尔滨市宾县宾西经济技术开发区风电叶片厂房建设项目施工 | D55: 178.123314 | E55: 1286.376346 | F55: 486.892083 | G55: =89.049102+44.329157 -> 133.378259 | H55: 0.097806 | I55: 13.172874 | J55: 3.3767 | K55: =SUM(D55:J55) -> 2101.417382 | L55: 446.570731
C56: 小 计 | D56: =SUM(D54:D55) -> 729.437883 | E56: =SUM(E54:E55) -> 3338.055009 | F56: 998.488268 | G56: 454.742185 | H56: 0.28056 | I56: 33.289964 | J56: 3.3767 | K56: 5557.670569 | L56: 631.576862
A57: 松北分公司 | B57: 1 | C57: 规划224路（规划209路-规划214路）道路及附属工程施工 | D57: 3.43301 | E57: 43.897245 | H57: 0.028351 | K57: =SUM(D57:I57) -> 47.358606
B58: 2 | C58: 规划南33路（规划32路东-松浦大道）道路及附属工程施工 | G58: 1.84 | K58: =SUM(D58:I58) -> 1.84
C59: 小 计 | D59: =SUM(D57:D58) -> 3.43301 | E59: =SUM(E57:E58) -> 43.897245 | F59: 0 | G59: 1.84 | H59: 0.028351 | I59: 0 | J59: 0 | K59: 49.198606 | L59: 0
A60: 新区子公司 | B60: 1 | C60: 劳务 | F60: 0.4 | G60: 322.482902 | H60: 11.658921 | K60: =SUM(D60:J60) -> 334.541823 | L60: 0.2
B61: 2 | C61: 哈尔滨市玉泉固体废物综合处理园区垃圾焚烧发电项目绿化路灯配套工程项目 | G61: 0.138396 | K61: =SUM(D61:J61) -> 0.138396
B62: 3 | C62: 松浦支渠（出水口-松浦排灌站）降水工程 | D62: 1.926214 | F62: 15.708151 | H62: 0.041864 | K62: 17.676229
B63: 4 | C63: 松北街道绿水小区基础设施改造工程施工 | E63: 79.646478 | F63: 1.6 | H63: 1.011435 | J63: 0.988723 | K63: 83.246636 | L63: 1.6
B64: 5 | C64: 同江市2023年涉农统筹整合资金基础设施项目五标段 | G64: 2.522418 | H64: 0.117783 | J64: 0.269898 | K64: 2.910099
B65: 6 | C65: 哈尔滨市玉泉垃圾焚烧发电项目-新增绿化工程 | D65: 26.861651 | E65: 57.06596 | F65: 25.3 | G65: 0.09434 | H65: 0.790139 | J65: 0.282649 | K65: 110.394739
B66: 7 | C66: 规划204路（规划185路-规划186路）给排水工程施工 | D66: 70.679613 | E66: 212.908351 | F66: 70.74491 | G66: 4.472125 | H66: 0.860169 | J66: 0.55928 | K66: 360.224448
B67: 8 | C67: 规划06路（规划01路-丰源街）道路及附属工程 | D67: 29.467962 | E67: 167.984941 | F67: 29.026551 | H67: 0.537659 | K67: 227.017113
B68: 9 | C68: 润和城一期道路维修工程 | D68: 25.91068 | E68: 87.361896 | F68: 27.787611 | H68: 0.334875 | K68: 141.395062
B69: 10 | C69: 软件园14#楼东侧修建临时停车场工程 | D69: 2.687379 | E69: 1.174757 | F69: 2.300885 | H69: 0.014631 | K69: 6.177652
B70: 11 | C70: 规划205路修筑临时便道工程 | D70: 0.341748 | E70: 1.351922 | F70: 0.460177 | H70: 0.005113 | K70: 2.15896
B71: 12 | C71: 智能制造龙江碳谷产业园增设铁艺围栏工程 | D71: 36.007767 | E71: 39.356769 | H71: 0.178914 | K71: 75.54345
B72: 13 | C72: 规划06路与丰源街交叉口开设道口工程 | D72: 1.941748 | E72: 6.054556 | H72: 0.018983 | K72: 8.015287
C73: 小 计 | D73: =SUM(D60:D72) -> 195.824762 | E73: =SUM(E60:E72) -> 652.90563 | F73: 173.328285 | G73: 329.710181 | H73: 15.570486 | I73: 0 | J73: 2.10055 | K73: 1369.439894 | L73: 1.8
A74: 汇总成本合计 | D74: =D24+D35+D43+D45+D50+D53+D56+D59 -> 4322.28082 | E74: =E24+E35+E43+E45+E50+E53+E56+E59 -> 16942.65371 | F74: 4598.469226 | G74: 2411.709947 | H74: 428.201666 | I74: 664.513244 | J74: 7.989458 | K74: =K24+K35+K43+K45+K50+K53+K56+K59 -> 29375.81808 | L74: 3612.764173
A75: 合并抵消哈尔滨新区第一市政工程有限公司劳务成本 | K75: 318.01
A76: 合并成本合计 | D76: =D74+D73-D75 -> 4518.105582 | E76: =E74+E73-E75 -> 17595.55934 | F76: 4771.797511 | G76: 2741.420128 | H76: 443.772152 | I76: 664.513244 | J76: 10.090008 | K76: 30427.24797 | L76: 3614.564173

Sheet 成本汇总
A1: 工程项目成本情况明细表
A2: 部门 | B2: 人工费 | C2: 材料费 | D2: 机械费 | E2: 其他直接费 | F2: 间接费 | G2: 研发费用 | H2: 安全生产费 | I2: 合计
A3: 公司 | B3: 405.44 | C3: 302.21 | D3: 654.45 | E3: 689.76 | F3: 226.46 | G3: 190.75 | H3: 2.16 | I3: =SUM(B3:H3) -> 2471.23
A4: 一分公司 | B4: 1626.539246 | C4: 1365.854724 | D4: 1092.233436 | E4: 445.481831 | F4: 82.910965 | G4: 132.121335 | H4: 1.022758 | I4: =SUM(B4:H4) -> 4746.164295
A5: 二分公司 | B5: 359.17 | C5: 866.89 | D5: 152.61 | E5: 95.44 | F5: 64.51 | G5: 7.1 | H5: 0.49 | I5: 1546.21
A6: 三分公司 | B6: 137.801943 | C6: 438.656041 | D6: 218.627522 | E6: 38.375931 | F6: 0.968981 | G6: 222.481945 | I6: 1056.912363
A7: 直属分公司 | B7: 1034.35 | C7: 10530.26 | D7: 1471.31 | E7: 686.07 | F7: 37.75 | G7: 78.77 | H7: 0.94 | I7: 13839.45
A8: 环保新能源分公司 | B8: 26.108738 | C8: 56.830695 | D8: 10.75 | E8: 0 | F8: 15.292809 | G8: 0 | H8: 0 | I8: 108.982242
A9: 宾县分公司 | B9: 729.437883 | C9: 3338.055009 | D9: 998.488268 | E9: 454.742185 | F9: 0.28056 | G9: 33.289964 | H9: 3.3767 | I9: 5557.670569
A10: 松北分公司 | B10: 3.43301 | C10: 43.897245 | D10: 0 | E10: 1.84 | F10: 0.028351 | G10: 0 | H10: 0 | I10: 49.198606
A11: 新区子公司 | B11: 195.824762 | C11: 652.90563 | D11: 173.328285 | E11: 329.710181 | F11: 15.570486 | G11: 0 | H11: 2.10055 | I11: 1369.439894
A12: 合并抵销 | I12: 318.01
A14: 合计 | B14: =SUM(B3:B13) -> 4518.105582 | C14: =SUM(C3:C13) -> 17595.55934 | D14: 4771.797511 | E14: 2741.420128 | F14: 443.772152 | G14: 664.513244 | H14: 10.090008 | I14: =SUM(I3:I11)-I12 -> 30427.24797

Sheet 管理费用
A1: 管理费用
A2: 序号 | B2: 项 目 | C2: 2023年预算 | D2: 2023年1-9月累计金额 | G2: 上年同期金额 | J2: 同比增长
D3: 公司 | E3: 新区子公司 | F3: 合计 | G3: 公司 | H3: 新区 | I3: 合计
B4: 合 计 | C4: =C5+C6+C7+C8+C11+C12+C13+C14+C15+C16+C17+C18+C19+C20+C21+C22 -> 2720.93 | D4: 905.82209 | E4: 40.372594 | F4: 946.194684 | G4: 1227.907 | H4: 95.41 | I4: 1323.317 | J4: 0.0281
A5: 1 | B5: 工资 | C5: 1490 | D5: 442.08 | E5: 15.6874 | F5: =D5+E5 -> 457.7674 | G5: 695.82 | H5: 37.96 | I5: =G5+H5 -> 733.78 | J5: =(F5-I5)/I5 -> -0.3761517076
A6: 2 | B6: 社会保险费 | C6: 502.89 | D6: 174.63 | E6: 6.038912 | F6: 180.668912 | G6: 296.8 | H6: 37.93 | I6: 334.73 | J6: -0.4602547964
A7: 3 | B7: 住房公积金 | C7: 111.2 | D7: 45.047703 | E7: 1.6101 | F7: 46.657803 | G7: 61.17 | H7: 3.97 | I7: 65.14 | J7: -0.2837303807
A8: 4 | B8: 福利费 | C8: 162 | D8: 21.481121 | E8: 0.071364 | F8: 21.552485 | G8: 18.1 | H8: 0.13 | I8: 18.23 | J8: 0.1822537027
B9: 其中：职工餐费 | C9: 32 | D9: 18.34 | F9: 18.34 | G9: 14.58 | I9: 14.58 | J9: 0.2578875171
B10: 职工包烧费 | C10: 97 | F10: 0 | I10: 0
A11: 5 | B11: 工会经费 | C11: 21.64 | D11: 8.84 | E11: 0.313748 | F11: 9.153748 | G11: 14.03 | H11: 0.76 | I11: 14.79 | J11: =(F11-I11)/I11 -> -0.3810853279
A12: 6 | B12: 职工教育经费 | C12: 10 | D12: 7.573266 | E12: 0.725 | F12: 8.298266 | G12: 0.56 | H12: 0.27 | I12: 0.83 | J12: 8.997910843
A13: 7 | B13: 办公费 | C13: 290 | D13: 157.91 | E13: 10.6 | F13: 168.51 | G13: 121.09 | H13: 13 | I13: 134.09 | J13: 0.2566932657
A14: 8 | B14: 差旅费 | C14: 20 | D14: 7.94 | E14: 0.505545 | F14: 8.445545 | G14: 3.72 | I14: 3.72 | J14: =(F14-I14)/I14 -> 1.270307796
A15: 9 | B15: 招待费 | C15: 1 | F15: 0 | I15: 0
A16: 10 | B16: 车辆维修费 | C16: 10 | F16: 0 | I16: 0
A17: 11 | B17: 车辆使用费 | C17: 0.2 | D17: 0.38 | F17: 0.38 | I17: 0
A18: 12 | B18: 残疾人保证金 | C18: 35 | D18: 12.86 | E18: 3.62442 | F18: 16.48442 | I18: 0
A19: 13 | B19: 咨询、律师费、诉讼费 | C19: 50 | F19: 0 | I19: 0
A20: 14 | B20: 审计评估费 | C20: 5 | F20: 0 | I20: 0
A21: 16 | B21: 党建经费 | C21: 2 | D21: 0.04 | E21: 0.2623 | F21: 0.3023 | G21: 0.22 | I21: 0.22 | J21: =(F21-I21)/I21 -> 0.3740909091
A22: 17 | B22: 其他 | C22: 10 | D22: 27.04 | E22: 0.933805 | F22: 27.973805 | G22: 16.397 | H22: 1.39 | I22: 17.787 | J22: =(F22-I22)/I22 -> 0.5727106876

Sheet 财务费用
B1: 财务费用
B2: 项目 | C2: 2023年1-9月 | D2: 上年同期金额 | E2: 同比增加%
B3: 利息收入 | C3: 88.49 | D3: =D14+D16+D18+D20+D22 -> 99.500262 | E3: =(C3-D3)/D3 -> -0.1106556081
B4: 手续费 | C4: =C15+C17+C19+C21+C23 -> 1.825078 | D4: =D15+D17+D19+D21+D23 -> 1.670017 | E4: =(C4-D4)/D4 -> 0.09284995302
B5: 合计 | C5: =C3-C4 -> 86.664922 | D5: =D3-D4 -> 97.830245 | E5: =(C5-D5)/D5 -> -0.1141295619
C13: 2023年1-9月 | D13: 上年同期金额
A14: 公司 | B14: 利息收入 | C14: 60.81498 | D14: 92.045773
B15: 手续费 | C15: 1.445918 | D15: 1.315591 | E15: =C14-C15 -> 59.369062
A16: 松北 | B16: 利息收入 | C16: 19.416569 | D16: 0.199391
B17: 手续费 | C17: 0.09936 | D17: 0.02 | E17: =C16-C17 -> 19.317209
A18: 宾县 | B18: 利息收入 | C18: 4.83 | D18: 5.62
B19: 手续费 | C19: 0.16 | D19: 0.24 | E19: =C18-C19 -> 4.67
A20: 新区 | B20: 利息收入 | C20: 3.242293 | D20: 1.385098
B21: 手续费 | C21: 0.0498 | D21: 0.034426 | E21: =C20-C21 -> 3.192493
A22: 华光 | B22: 利息收入 | D22: 0.25
B23: 手续费 | C23: 0.07 | D23: 0.06 | E23: =C22-C23 -> -0.07

Sheet 收入情况
A2: 部门 | B2: 序号 | C2: 项目名称 | D2: 营业收入
A3: 公司 | B3: 1 | C3: 哈尔滨市向阳生活垃圾处理场管理养护项目 | D3: 609.05
B4: 2 | C4: 哈尔滨市玉泉固体废物综合处理园区垃圾焚烧发电项目附属工程建筑工程 | D4: 443.36
B5: 3 | C5: 黄家崴子路（第一标段）HDPE污水管线抢险工程（亮圈湖鱼池新增40米） | D5: 11.47
B6: 4 | C6: 哈尔滨综合保税区二期基础设施道路围网工程施工第一标段 | D6: 46.35
B7: 5 | C7: 2017年政府购买服务排水工程项目包 | D7: 202.01
B8: 6 | C8: 哈尔滨市玉泉固体废物综合处理园区垃圾焚烧发电项目截洪排水工程项目 | D8: 99.99
B9: 7 | C9: 哈尔滨市松北区和呼兰区生活垃圾焚烧发电厂项目填埋场三区及附属设施工程 | D9: 2.75
B10: 8 | C10: 2019老旧吃水难小区二次供水设施维修改造工程 | D10: 54.94
B11: 9 | C11: 哈西客站北广场区域土方防洪抢险工程6#地块 | D11: 584.67
B12: 10 | C12: 机场高速长岭湖交通枢纽扩建工程施工 | D12: 65.03
B13: 11 | C13: 腾飞路、鲜明街、新立西街、电石厂北路道路及附属设施项目工程二标段 | D13: 363.35
B14: 12 | C14: 哈尔滨市运达鸿升汽车有限公司（滨河大道）排水支线工程 | D14: 8.93
B15: 13 | C15: 中国联通（哈南十五路）排水支线工程 | D15: 6.55
B16: 14 | C16: 哈南第十二大道雨水、哈南十一污水（哈加孵化器）支线工程 | D16: 2.46
B17: 15 | C17: 长河特种涂料厂道口工程 | D17: 9.95
B18: 16 | C18: 对青鹅业排水支线工程 | D18: 2.87
B19: 17 | C19: 哈尔滨谊远置业有限公司开设道口工程 | D19: 8.28
B20: 18 | C20: 哈尔滨工大焊接科技有限公司排水支线工程 | D20: 6.42
B21: 19 | C21: 哈尔滨市道外区民主乡农业示范区公路A2标段 | D21: 18.35
B22: 20 | C22: 房租 | D22: 107.94
C23: 小 计 | D23: =SUM(D3:D22) -> 2654.72
A24: 一分公司 | B24: 1 | C24: 东三环快速路工程施工（非涉铁部分）二标段 | D24: 2426.762985
B25: 2 | C25: 哈东五号雨水泵站及配套管线工程施工 | D25: 307.517426
B26: 3 | C26: 2022年哈尔滨排水集团有限责任公司排水设施抢修抢险项目 | D26: 10.121298
B27: 4 | C27: 哈尔滨恒泰悦璟府项目6#楼总承包工程项目 | D27: 749.775659
B28: 5 | C28: 水泥路雨水泵站及配套管线工程总承包 | D28: 1535.183244
B29: 6 | C29: 临空污水处理厂配套管线工程（污水管线）施工第三标段项目 | D29: 46.846
B30: 7 | C30: 哈尔滨排水集团有限责任公司2023年度排水设施抢修抢险施工 | D30: 15.207601
B31: 8 | C31: 黑龙江省哈尔滨市中国（黑龙江）自由贸易试验区哈尔滨片区基础设施建设项目一期--公园及街边绿地建设项目第四标段 | D31: 8.237305
B32: 9 | C32: 马家沟截流方渠（利材街-东灌泵站）排水系统完善工程第二标段项目 | D32: 1.564702
B33: 10 | C33: 黑龙江省哈尔滨市平房区哈尔滨合力投资控股有限公司2023年供热老旧管网改造工程项目施工（一标段） | D33: 8.370165
C34: 小 计 | D34: =SUM(D24:D33) -> 5109.586385
A35: 二分公司 | B35: 1 | C35: 哈尔滨综合保税区标准化仓库二期工程三标段、四标段施工项目（三标段） | D35: 193.74
B36: 2 | C36: 2021年度哈成路打通工程、哈东阿城园区规划九路工程、哈东阿城园区规划十一路工程、哈东阿城园区规划十二路工程施工（第五标段） | D36: 420.26
B37: 3 | C37: 润和城二期22#商服改造装修及弱电工程施工（一标段） | D37: 891.02
B38: 4 | C38: 北岸众和城、北岸润和城外墙保温应急维修工程 | D38: 41.61
B39: 5 | C39: 哈尔滨新区新材料产业园基础设施建设项目施工一批次 | D39: 22.26
B40: 6 | C40: 黑龙江省大江大河水文监测系统建设工程 | D40: 5.16
B41: 7 | C41: 哈尔滨市公共区域视频监控设备建设项目1.33万路建设项目施工 | D41: 39.05
C42: 小 计 | D42: =SUM(D35:D41) -> 1613.1
A43: 三分公司 | B43: 1 | C43: 哈尔滨新区利民片区排水设施和管网改造项目雪花路排水改造施工 | D43: 992.818732
B44: 2 | C44: 哈建设发展集团有限责任公司协同办公系统采购项目 | D44: 61.132075
B45: 3 | C45: 哈建设发展集团有限责任公司智慧工地管理系统采购项目 | D45: 32.877358
B46: 4 | C46: 哈建设发展集团有限责任公司资产经营管理系统采购项目 | D46: 28.09434
B47: 5 | C47: 哈建设发展集团有限责任公司AI智能监控平台采购项目 | D47: 18.679245
B48: 6 | C48: 哈建设发展集团有限责任公司市政项目管理系统采购项目 | D48: 47.028302
B49: 7 | C49: 哈尔滨建设发展集团数字化转型支持类软件服务采购项目 | D49: 47.075472
C50: 小 计 | D50: =SUM(D43:D49) -> 1227.705524
A51: 直属分公司 | B51: 1 | C51: 哈尔滨市松花江水源上移输水管线顶目（四环以内部分）设计、施工工程1-9 | D51: 2895.59
B52: 2 | C52: 哈尔滨市松花江水源上移及输水管线项目（四环以外部分）施工1-9 | D52: 9471.83
B53: 3 | C53: 香坊区农村公路提质改造工程施工一期 | D53: 2092.67
B54: 4 | C54: 何家沟流域雨污分流改造工程（一期工程、哈西大街周边区域、南兴街周边区域） | D54: 188.29
B55: 5 | C55: 其中哈尔滨市松花江水源上移输水管线顶目（四环以内部分）设计、施工工程1-3 | D55: 749.56
B56: 6 | C56: 其中哈尔滨市松花江水源上移及输水管线项目（四环以外部分）施工1-3 | D56: 1974.71
C57: 小 计 | D57: =SUM(D51:D54) -> 14648.38
A58: 环保新能源分公司 | B58: 1 | C58: 哈尔滨市公共区域视频监控设备建设项目1.33万路建设项目施工 | D58: 109.245615
C59: 小 计 | D59: =SUM(D58) -> 109.245615
A60: 宾县分公司 | B60: 1 | C60: 国家级宾西经济技术开发区（宾县）松花江供水项目--输水管网工程施工第一标段 | D60: 3706.357397
B61: 2 | C61: 黑龙江省哈尔滨市宾县宾西经济技术开发区风电叶片厂房建设项目施工 | D61: 2222.470045
C62: 小 计 | D62: =SUM(D60:D61) -> 5928.827442
A63: 松北分公司 | B63: 1 | C63: 规划224路（规划209路-规划214路）道路及附属工程施工 | D63: 47.706422
B64: 2 | C64: 规划南33路（规划32路东-松浦大道）道路及附属工程施工 | D64: 1.878291
C65: 小 计 | D65: =SUM(D63:D64) -> 49.584713
A66: 新区子公司 | B66: 1 | C66: 劳务 | D66: 318.014218
B67: 2 | C67: 松浦支渠（出水口-松浦排灌站）降水工程 | D67: 18.073395
B68: 3 | C68: 哈尔滨市玉泉固体废物综合处理园区垃圾焚烧发电项目绿化路灯配套工程项目 | D68: 0.15361
B69: 4 | C69: 松北街道绿水小区基础设施改造工程施工 | D69: 89.869926
B70: 5 | C70: 同江市2023年涉农统筹整合资金基础设施项目五标段 | D70: 2.70501
B71: 6 | C71: 哈尔滨市玉泉垃圾焚烧发电项目-新增绿化工程 | D71: 114.911757
B72: 7 | C72: 规划204路（规划185路-规划186路）给排水工程施工 | D72: 417.431193
B73: 8 | C73: 规划205路修筑临时便道工程 | D73: 2.201835
B74: 9 | C74: 润和城一期道路维修工程 | D74: 144.036697
B75: 10 | C75: 规划06路（规划01路-丰源街）道路及附属工程 | D75: 232.110092
B76: 11 | C76: 规划06路与丰源街交叉口开设道口工程 | D76: 8.165138
B77: 12 | C77: 软件园14#楼东侧修建临时停车场工程 | D77: 6.330275
B78: 13 | C78: 智能制造龙江碳谷产业园增设铁艺围栏工程施工 | D78: 83.486239
C79: 小 计 | D79: =SUM(D66:D78) -> 1437.489385
C80: 合并抵消哈尔滨新区第一市政工程有限公司劳务收入
C81: 合 计 | D81: =D23+D34+D42+D50+D57+D59+D62+D65+D79+D80 -> 32778.63906

Sheet 收入汇总
B2: 收入项目 | C2: 部门 | D2: 收入金额
B3: 主营业务收入 | C3: 公司 | D3: 2546.78
C4: 一分公司 | D4: 5109.586385
C5: 二分公司 | D5: 1613.1
C6: 三分公司 | D6: 1227.705524
C7: 直属分公司 | D7: 14648.38
C8: 环保新能源分公司 | D8: 109.245615
C9: 宾县分公司 | D9: 5928.827442
C10: 松北分公司 | D10: 49.584713
C11: 新区子公司 | D11: 1437.489385
C12: 小计 | D12: =SUM(D3:D11) -> 32670.69906
B13: 房租收入 | C13: 公司 | D13: 107.94
B14: 其他收益 | C14: 公司 | D14: 1.48
C15: 新区子公司 | D15: 0.02
B16: 合并抵销
C17: 合计 | D17: =SUM(D12:D16) -> 32780.13906

Sheet 税金及附加汇总
A1: 序号 | B1: 部门 | C1: 城建税 | D1: 教育费附加 | E1: 地方教育费附加 | F1: 合同印花税 | G1: 房产税 | H1: 土地使用税 | I1: 车船使用税 | J1: 环保税 | K1: 合计
A2: 1 | B2: 公司 | F2: 2.06 | G2: 14.63 | H2: 2.09 | I2: 0.35 | J2: 2.08 | K2: =SUM(C2:J2) -> 21.21
A3: 2 | B3: 一分 | C3: 4.89411 | D3: 2.097477 | E3: 1.398317 | F3: 12.033779 | G3: 0.988443 | H3: 1.744947 | I3: 0.09 | K3: =SUM(C3:I3) -> 23.247073
A4: 3 | B4: 二分 | C4: 3.18 | D4: 1.37 | E4: 0.91 | F4: 1.22 | G4: 0.07 | I4: 0.02 | K4: 6.77
A5: 4 | B5: 三分 | C5: 3.781778 | D5: 1.620762 | E5: 1.080508 | F5: 0.361923 | K5: 6.844971
A6: 5 | B6: 直属 | C6: 17.08 | D6: 7.32 | E6: 4.88 | F6: 3.52 | G6: 0.66 | H6: 1.16 | K6: 34.62
A7: 6 | B7: 环保 | C7: 0.58593 | D7: 0.251113 | E7: 0.167408 | F7: 0.069579 | K7: 1.07403
A8: 7 | B8: 宾县 | C8: 15.612197 | D8: 9.367319 | E8: 6.244879 | F8: 1.446469 | K8: 32.670864
A9: 8 | B9: 松北 | F9: 0.346052 | K9: 0.346052
A10: 9 | B10: 新区 | C10: 1.728295 | D10: 0.740699 | E10: 0.491432 | F10: 0.473666 | K10: 3.434092
B11: 合计 | C11: =SUM(C2:C10) -> 46.86231 | D11: =SUM(D2:D10) -> 22.76737 | E11: 15.172544 | F11: 21.531468 | G11: 16.348443 | H11: 4.994947 | I11: 0.46 | J11: 2.08 | K11: 130.217082

Sheet 研发费用
B1: 1-9月研发费用
B2: 部门 | C2: 项目 | D2: 人员人工费用 | E2: 直接投入 | F2: 折旧费用 | G2: 合计
B3: 公司 | C3: 框架结构施工中钢筋保护层厚度的控制研究 | D3: 1.052977 | G3: =SUM(D3:F3) -> 1.052977
C4: 钢箱梁制作、拼装焊接技术方法研究 | D4: 6.437648 | G4: =SUM(D4:F4) -> 6.437648
C5: 项目管理平台 | D5: 61.494684 | G5: =SUM(D5:F5) -> 61.494684
C6: 协同办公平台 | D6: 55.880208 | G6: 55.880208
C7: 智能视频监控管理平台 | D7: 50.23881 | G7: 50.23881
C8: 泡沫沥青的现状及改进方向 | D8: 15.650063 | G8: 15.650063
C9: 小计 | D9: =SUM(D3:D8) -> 190.75439 | G9: =SUM(G3:G8) -> 190.75439
B10: 一分公司 | C10: 钢箱梁制作、拼装焊接技术方法研究项目 | D10: 63.367915 | E10: 0.18 | G10: 63.547915
C11: 小箱梁制作、浇筑技术方法研究项目 | G11: 0
C12: 桥梁防撞护栏扶手栏杆预埋板调平安装工艺技术 | D12: 14.716276 | G12: 14.716276
C13: 叠合装配式桥梁防撞护栏安装工艺技术 | D13: 9.848771 | G13: 9.848771
C14: 桥梁防撞护栏伸缩缝装配式伸缩装置安装工艺技术 | D14: 8.399633 | G14: 8.399633
C15: 钻孔灌注桩加锚杆加高压旋喷桩深基坑支护降水组合体系方法研究 | D15: 35.60874 | G15: 35.60874
C16: 小计 | D16: =SUM(D10:D15) -> 131.941335 | E16: =SUM(E10:E15) -> 0.18 | G16: 132.121335
B17: 二分公司 | C17: 框架结构施工中钢筋保护层厚度的控制研究 | D17: 6.91 | E17: 0.19 | G17: 7.1
B18: 三分公司 | C18: 三分研发 | D18: 177.688627 | E18: 5.421449 | F18: 2.700711 | G18: =SUM(D18:F18) -> 185.810787
C19: 智慧园林及智能导览平台的研究 | D19: 12.102292 | G19: 12.102292
C20: 智慧园林的设计及建设标准 | D20: 7.725227 | G20: 7.725227
C21: 群力调蓄池（一期）地下调蓄池项目智慧施工平台 | D21: 12.084636 | G21: 12.084636
C22: 建筑市场信息采集平台 | D22: 4.759003 | G22: 4.759003
C23: 小计 | D23: =SUM(D18:D22) -> 214.359785 | E23: =SUM(E18:E22) -> 5.421449 | F23: 2.700711 | G23: 222.481945
B24: 直属 | C24: 大管径泥水平衡顶管长距离施工技术研究 | D24: 21.83 | F24: 0.02 | G24: 21.85
C25: 高寒地区刚性管道焊接工艺研究 | D25: 18.75 | G25: 18.75
C26: 高寒地区沉井工艺的研究 | D26: 17.54 | G26: 17.54
C27: 高寒地区刚性管道阴极保护工艺的研究 | D27: 11.3 | G27: 11.3
C28: 市政大口径给排水管道试压技术的研究 | D28: 9.33 | G28: 9.33
C29: 小计 | D29: =SUM(D24:D28) -> 78.75 | F29: =SUM(F24:F28) -> 0.02 | G29: 78.77
B30: 宾县分公司 | C30: 小口径管道内壁防腐补口技术的应用研究 | D30: 8.886845 | G30: =D30+E30+F30 -> 8.886845
C31: 城市供水长输管线钢管单面焊双面成型施工工艺的研究 | D31: 11.230245 | G31: 11.230245
C32: 建筑机器人在生产、施工环节的应用研究 | D32: 7.973973 | G32: 7.973973
C33: 水泥混凝土路面真空吸水工艺的研究 | D33: 5.198901 | G33: 5.198901
C34: 小计 | D34: =SUM(D30:D33) -> 33.289964 | E34: =SUM(E30:E33) -> 0 | F34: 0 | G34: 33.289964
B35: 合计 | D35: =D9+D16+D17+D23+D29+D34 -> 656.005474 | E35: =E9+E16+E17+E23+E29+E34 -> 5.791449 | F35: 2.720711 | G35: 664.517634

Sheet 公司
B1: 1-9月公司经营情况
B2: 序号 | C2: 项目名称 | D2: 营业收入 | E2: 营业成本 | F2: 税金及附加 | G2: 研发费用 | H2: 安全生产费 | M2: 利润总额 | N2: 利润率
B3: 1 | C3: 哈尔滨市向阳生活垃圾处理场管理养护项目 | D3: 609.05 | E3: 576.93 | M3: =D3-E3-F3-G3-H3 -> 32.12 | N3: =M3/D3 -> 0.05273787045
B4: 2 | C4: 哈尔滨市玉泉固体废物综合处理园区垃圾焚烧发电项目附属工程建筑工程 | D4: 443.36 | E4: 444.83 | M4: =D4-E4-F4-G4-H4 -> -1.47 | N4: -0.00331559004
B5: 3 | C5: 黄家崴子路（第一标段）HDPE污水管线抢险工程（亮圈湖鱼池新增40米） | D5: 11.47 | E5: 11.46 | M5: 0.01 | N5: 0.0008718395815
B6: 4 | C6: 哈尔滨综合保税区二期基础设施道路围网工程施工第一标段 | D6: 46.35 | E6: 42.13 | M6: 4.22 | N6: 0.09104638619
B7: 5 | C7: 2017年政府购买服务排水工程项目包 | D7: 202.01 | E7: 194.26 | H7: 0.5 | M7: 7.25 | N7: 0.03588931241
B8: 6 | C8: 哈尔滨市玉泉固体废物综合处理园区垃圾焚烧发电项目截洪排水工程项目 | D8: 99.99 | E8: 96.16 | M8: 3.83 | N8: 0.03830383038
B9: 7 | C9: 哈尔滨市松北区和呼兰区生活垃圾焚烧发电厂项目填埋场三区及附属设施工程 | D9: 2.75 | E9: 2.75 | M9: 0 | N9: 0
B10: 8 | C10: 2019老旧吃水难小区二次供水设施维修改造工程 | D10: 54.94 | E10: 52.69 | M10: 2.25 | N10: 0.04095376775
B11: 9 | C11: 哈西客站北广场区域土方防洪抢险工程6#地块 | D11: 584.67 | E11: 382.22 | M11: 202.45 | N11: 0.3462637043
B12: 10 | C12: 机场高速长岭湖交通枢纽扩建工程施工 | D12: 65.03 | E12: 61.18 | M12: 3.85 | N12: 0.05920344456
B13: 11 | C13: 腾飞路、鲜明街、新立西街、电石厂北路道路及附属设施项目工程二标段 | D13: 363.35 | E13: 340.11 | H13: 1.43 | M13: 21.81 | N13: 0.06002476951
B14: 12 | C14: 哈尔滨市运达鸿升汽车有限公司（滨河大道）排水支线工程 | D14: 8.93 | E14: 10.25 | M14: -1.32 | N14: -0.1478163494
B15: 13 | C15: 中国联通（哈南十五路）排水支线工程 | D15: 6.55 | E15: 7.52 | M15: -0.97 | N15: -0.1480916031
B16: 14 | C16: 哈南第十二大道雨水、哈南十一污水（哈加孵化器）支线工程 | D16: 2.46 | E16: 2.82 | M16: -0.36 | N16: -0.1463414634
B17: 15 | C17: 长河特种涂料厂道口工程 | D17: 9.95 | E17: 11.42 | M17: -1.47 | N17: -0.1477386935
B18: 16 | C18: 对青鹅业排水支线工程 | D18: 2.87 | E18: 3.3 | M18: -0.43 | N18: -0.149825784
B19: 17 | C19: 哈尔滨谊远置业有限公司开设道口工程 | D19: 8.28 | E19: 9.51 | M19: -1.23 | N19: -0.1485507246
B20: 18 | C20: 哈尔滨工大焊接科技有限公司排水支线工程 | D20: 6.42 | E20: 7.37 | M20: -0.95 | N20: -0.1479750779
B21: 19 | C21: 哈尔滨市道外区民主乡农业示范区公路A2标段 | D21: 18.35 | E21: 21.07 | M21: -2.72 | N21: -0.1482288828
C22: 房租 | D22: 107.94 | E22: 0.34 | M22: 107.6 | N22: 0.9968501019
C23: 公司 | F23: 21.21 | G23: 190.75 | H23: 0.23 | M23: -212.19
C24: 合 计 | D24: =SUM(D3:D23) -> 2654.72 | E24: =SUM(E3:E23) -> 2278.32 | F24: 21.21 | G24: 190.75 | H24: 2.16 | M24: 162.28 | N24: =M24/D24 -> 0.06112885728

Sheet 一分
B1: 1-9月一分公司经营情况
B2: 序号 | C2: 项目名称 | D2: 营业收入 | E2: 营业成本 | F2: 税金及附加 | G2: 研发费用 | H2: 安全生产费 | I2: 营业外收入 | J2: 利润总额 | K2: 利润率
B3: 1 | C3: 东三环快速路工程施工（非涉铁部分）二标段项目 | D3: 2426.762985 | E3: =2215.964662-96.512595 -> 2119.452067 | G3: 96.512595 | J3: =D3-E3-F14-G3-H3 -> 187.55125 | K3: =J3/D3 -> 0.07728453547
B4: 2 | C4: 哈东五号雨水泵站及配套管线工程施工 | D4: 307.517426 | E4: =299.534826-1.022758 -> 298.512068 | H4: 1.022758 | J4: =D4-E4-F4-G4-H4 -> 7.9826 | K4: 0.02595820375
B5: 3 | C5: 2022年哈尔滨排水集团有限责任公司排水设施抢修抢险工程项目 | D5: 10.121298 | E5: 9.639332 | J5: 0.481966 | K5: 0.04761899116
B6: 4 | C6: 哈尔滨利民经济开发区恒泰-悦璟府建设项目一期工程 | D6: 749.775659 | E6: 744.427547 | J6: 5.348112 | K6: 0.007132949617
B7: 5 | C7: 水泥路雨水泵站及配套管线工程总承包 | D7: 1535.183244 | E7: =1400.287852-35.60874 -> 1364.679112 | G7: 35.60874 | J7: 134.895392 | K7: 0.08786924462
B8: 6 | C8: 临空污水处理厂配套管线工程（污水管线）施工第三标段项目 | D8: 46.846 | E8: 44.594056 | J8: 2.251944 | K8: 0.04807121206
B9: 7 | C9: 哈尔滨排水集团有限责任公司2023年度排水设施抢修抢险施工 | D9: 15.207601 | E9: 14.487433 | J9: 0.720168 | K9: 0.04735579267
B10: 8 | C10: 黑龙江省哈尔滨市中国（黑龙江）自由贸易试验区哈尔滨片区基础设施建设项目一期--公园及街边绿地建设项目第四标段 | D10: 8.237305 | E10: 7.503883 | J10: 0.733422 | K10: 0.08903664487
B11: 9 | C11: 马家沟截流方渠（利材街-东灌泵站）排水系统完善工程第二标段项目 | D11: 1.564702 | E11: 1.51866 | J11: 0.046042 | K11: 0.02942541136
B12: 10 | C12: 黑龙江省哈尔滨市平房区哈尔滨合力投资控股有限公司2023年供热老旧管网改造工程项目施工（一标段） | D12: 8.370165 | E12: 8.206044 | J12: 0.164121 | K12: 0.01960785719
I13: 1
C14: 合 计 | D14: =SUM(D3:D12) -> 5109.586385 | E14: =SUM(E3:E12) -> 4613.020202 | F14: 23.247073 | G14: =SUM(G3:G12) -> 132.121335 | H14: =SUM(H3:H12) -> 1.022758 | I14: =I13 -> 1 | J14: =D14-E14-F14-G14-H14+I14 -> 341.175017 | K14: =J14/D14 -> 0.06677155278

Sheet 二分
B1: 1-9月二分公司经营情况
B2: 序号 | C2: 项目名称 | D2: 营业收入 | E2: 营业成本 | F2: 税金及附加 | G2: 研发费用 | H2: 安全生产费 | I2: 利润总额 | J2: 利润率
B3: 1 | C3: 哈尔滨综合保税区标准化仓库二期工程三标段、四标段施工项目（三标段） | D3: 193.74 | E3: 181.6 | G3: 7.1 | I3: =D3-E3-F3-G3-H3 -> 5.04 | J3: =I3/D3 -> 0.0260142459
B4: 2 | C4: 2021年度哈成路打通工程、哈东阿城园区规划九路工程、哈东阿城园区规划十一路工程、哈东阿城园区规划十二路工程施工（第五标段） | D4: 420.26 | E4: 400.42 | H4: 0.49 | I4: 19.35 | J4: 0.04604292581
B5: 3 | C5: 润和城二期22#商服改造装修及弱电工程施工（一标段） | D5: 891.02 | E5: 851.61 | I5: 39.41 | J5: 0.04423020808
B6: 4 | C6: 北岸众和城、北岸润和城外墙保温应急维修工程 | D6: 41.61 | E6: 41 | I6: 0.61 | J6: 0.01465993752
B7: 5 | C7: 哈尔滨新区新材料产业园基础设施建设项目施工一批次 | D7: 22.26 | E7: 22.04 | I7: 0.22 | J7: 0.009883198562
B8: 6 | C8: 黑龙江省大江大河水文监测系统建设工程 | D8: 5.16 | E8: 5.11 | I8: 0.05 | J8: 0.009689922481
B9: 7 | C9: 哈尔滨市公共区域视频监控设备建设项目1.33万路建设项目施工 | D9: 39.05 | E9: 36.84 | I9: 2.21 | J9: 0.05659411012
C10: 合 计 | D10: =SUM(D3:D9) -> 1613.1 | E10: 1538.62 | F10: 6.77 | G10: 7.1 | H10: =SUM(H4:H9) -> 0.49 | I10: 60.12 | J10: 0.03726985308

Sheet 三分
B1: 1-9月三分公司经营情况
B2: 序号 | C2: 项目名称 | D2: 营业收入 | E2: 营业成本 | F2: 税金及附加 | G2: 研发费用 | H2: 利润总额 | I2: 利润率
B3: 1 | C3: 哈尔滨新区利民片区排水设施和管网改造项目雪花路排水改造施工 | D3: 992.818732 | E3: 834.4304 | H3: =D3-E3-F11-G3 -> 151.543361 | I3: =H3/D3 -> 0.1526395062
B4: 2 | C4: 哈建设发展集团有限责任公司协同办公系统采购项目 | D4: 61.132075 | H4: =D4-E4-F4-G4 -> 61.132075 | I4: 1
B5: 3 | C5: 哈建设发展集团有限责任公司智慧工地管理系统采购项目 | D5: 32.877358 | H5: 32.877358 | I5: 1
B6: 4 | C6: 哈建设发展集团有限责任公司资产经营管理系统采购项目 | D6: 28.09434 | H6: 28.09434 | I6: 1
B7: 5 | C7: 哈建设发展集团有限责任公司AI智能监控平台采购项目 | D7: 18.679245 | H7: 18.679245 | I7: 1
B8: 6 | C8: 哈建设发展集团有限责任公司市政项目管理系统采购项目 | D8: 47.028302 | H8: 47.028302 | I8: 1
B9: 7 | C9: 哈尔滨建设发展集团数字化转型支持类软件服务采购项目 | D9: 47.075472 | H9: 47.075472 | I9: 1
B10: 8 | C10: 研发费用 | G10: 222.4819 | H10: -222.4819
C11: 合 计 | D11: =SUM(D3:D10) -> 1227.705524 | E11: =SUM(E3:E9) -> 834.4304 | F11: 6.844971 | G11: =SUM(G3:G10) -> 222.4819 | H11: 163.948253 | I11: 0.1335403725

Sheet 直属分公司
B1: 1-9月一分公司经营情况
B2: 序号 | C2: 项目名称 | D2: 营业收入 | E2: 营业成本 | F2: 税金及附加 | G2: 研发费用 | H2: 安全生产费 | I2: 利润总额 | J2: 利润率
B3: 1 | C3: 哈尔滨市松花江水源上移输水管线顶目（四环以内部分）设计、施工工程 | D3: 2895.59 | E3: 2751.22 | I3: =D3-E3-F3-G3-H3 -> 144.37 | J3: =I3/D3 -> 0.04985857804
B4: 2 | C4: 哈尔滨市松花江水源上移及输水管线项目（四环以外部分）施工 | D4: 9471.83 | E4: 8872.33 | I4: =D4-E4-F4-G4-H4 -> 599.5 | J4: =I4/D4 -> 0.06329294339
B5: 3 | C5: 香坊区农村公路提质改造工程施工一期 | D5: 2092.67 | E5: 1961.2 | I5: =D5-E5-F5-G5-H5 -> 131.47 | J5: =I5/D5 -> 0.06282404775
B6: 4 | C6: 何家沟流域雨污分流改造工程（一期工程、哈西大街周边区域、南兴街周边区域） | D6: 188.29 | E6: 174.97 | H6: 0.94 | I6: =D6-E6-F6-G6-H6 -> 12.38 | J6: =I6/D6 -> 0.06574964151
C7: 合计 | D7: 14648.38 | E7: =SUM(E3:E6) -> 13759.72 | F7: 34.62 | G7: 78.78 | H7: =SUM(H3:H6) -> 0.94 | I7: =D7-E7-F7-G7-H7 -> 774.32 | J7: =I7/D7 -> 0.05286045283

Sheet 环保新能源分公司
B1: 1-9月环保新能源分公司经营情况
B2: 序号 | C2: 项目名称 | D2: 营业收入 | E2: 营业成本 | F2: 税金及附加 | G2: 研发费用 | H2: 利润总额 | I2: 利润率
B3: 1 | C3: 哈尔滨市公共区域视频监控设备建设项目1.33万路建设项目施工 | D3: 109.245615 | E3: 102.99606 | F3: 1.07403 | H3: =D3-E3-F3-G3 -> 5.175525 | I3: =H3/D3 -> 0.04737512805
B4: 2 | C4: 间接费 | E4: 5.986182 | H4: -5.986182
B5: 3
B6: 4
B7: 5
C8: 合 计 | D8: =SUM(D3:D7) -> 109.245615 | E8: 108.982242 | F8: 1.07403 | G8: 0 | H8: -0.810657 | I8: =H8/D8 -> -0.007420499212

Sheet 宾县
B1: 1-9月一分公司经营情况
B2: 序号 | C2: 项目名称 | D2: 营业收入 | E2: 营业成本 | F2: 税金及附加 | G2: 研发费用 | H2: 安全生产费 | I2: 财务费用 | J2: 营业外支出 | K2: 利润总额 | L2: 利润率
B3: 1 | C3: 国家级宾西经济技术开发区（宾县）松花江供水项目--输水管网工程施工第一标段 | D3: 3706.357397 | E3: 3436.136097 | G3: 20.11709 | K3: =D3-E3-F8-G3-H3 -> 217.433346 | L3: =K3/D3 -> 0.05866497013
B4: 2 | C4: 黑龙江省哈尔滨市宾县宾西经济技术开发区风电叶片厂房建设项目施工 | D4: 2222.470045 | E4: 2084.867808 | G4: 13.172874 | H4: 3.3767 | K4: =D4-E4-F4-G4-H4 -> 121.052663 | L4: 0.05446762411
B5: 3
B6: 4
B7: 5
C8: 合 计 | D8: =SUM(D3:D7) -> 5928.827442 | E8: =SUM(E3:E7) -> 5521.003905 | F8: 32.670864 | G8: =SUM(G3:G7) -> 33.289964 | H8: =SUM(H3:H7) -> 3.3767 | I8: -6.25 | J8: 0.35 | K8: =D8-E8-F8-G8-H8-I8-J8 -> 344.386009 | L8: 0.05808669798

Sheet 松北
B1: 1-9月松北分公司经营情况
B2: 序号 | C2: 项目名称 | D2: 营业收入 | E2: 营业成本 | F2: 税金及附加 | G2: 研发费用 | H2: 财务费用 | I2: 营业外支出 | J2: 利润总额 | K2: 利润率
B3: 1 | C3: 规划224路（规划209路-规划214路）道路及附属工程施工 | D3: 47.706422 | E3: 47.358606 | J3: =D3-E3-F3-G3 -> 0.347816 | K3: =J3/D3 -> 0.007290758464
B4: 2 | C4: 规划南33路（规划32路东-松浦大道）道路及附属工程施工 | D4: 1.878291 | E4: 1.84 | J4: 0.038291 | K4: =J4/D4 -> 0.02038608501
B5: 3 | J5: 0
B6: 4 | J6: 0
B7: 5 | J7: 0
C8: 合 计 | D8: =SUM(D3:D7) -> 49.584713 | E8: =SUM(E3:E7) -> 49.198606 | F8: 0.346052 | G8: =SUM(G3:G7) -> 0 | H8: -19.32 | I8: 0.04 | J8: =D8-E8-F8-G8-H8-I8 -> 19.320055 | K8: =J8/D8 -> 0.3896373263

Sheet 新区
B1: 1-9月新区子公司经营情况
B2: 序号 | C2: 项目名称 | D2: 营业收入 | E2: 营业成本 | F2: 税金及附加 | G2: 研发费用 | H2: 安全生产费 | I2: 管理费用 | J2: 财务费用 | K2: 利润总额 | L2: 所得税 | M2: 净利润 | N2: 利润率
B3: 1 | C3: 劳务 | D3: 318.014218 | E3: 334.541823 | K3: =D3-E3-F3-G3-H3 -> -16.527605 | N3: =K3/D3 -> -0.05197127696
B4: 2 | C4: 松浦支渠（出水口-松浦排灌站）降水工程 | D4: 18.073395 | E4: 17.676229 | K4: 0.397166 | N4: 0.02197517401
B5: 3 | C5: 哈尔滨市玉泉固体废物综合处理园区垃圾焚烧发电项目绿化路灯配套工程项目 | D5: 0.15361 | E5: 0.14 | K5: 0.01361 | N5: 0.08860100254
B6: 4 | C6: 松北街道绿水小区基础设施改造工程施工 | D6: 89.869926 | E6: 82.257913 | H6: 0.988723 | K6: 6.62329 | N6: 0.07369862528
B7: 5 | C7: 同江市2023年涉农统筹整合资金基础设施项目五标段 | D7: 2.70501 | E7: 2.640201 | H7: 0.269898 | K7: -0.205089 | N7: -0.075818204
B8: 6 | C8: 哈尔滨市玉泉垃圾焚烧发电项目-新增绿化工程 | D8: 114.911757 | E8: 110.11209 | H8: 0.282649 | K8: 4.517018 | N8: 0.03930858006
B9: 7 | C9: 规划204路（规划185路-规划186路）给排水工程施工 | D9: 417.431193 | E9: 359.665168 | H9: 0.55928 | K9: 57.206745 | N9: 0.1370447297
B10: 8 | C10: 规划205路修筑临时便道工程 | D10: 2.201835 | E10: 2.16 | K10: 0.041835 | N10: 0.01900006131
B11: 9 | C11: 润和城一期道路维修工程 | D11: 144.036697 | E11: 141.395062 | K11: 2.641635 | N11: 0.01834001373
B12: 10 | C12: 规划06路（规划01路-丰源街）道路及附属工程 | D12: 232.110092 | E12: 227.017113 | K12: 5.092979 | N12: 0.02194208341
B13: 11 | C13: 规划06路与丰源街交叉口开设道口工程 | D13: 8.165138 | E13: 8.02 | K13: 0.145138 | N13: 0.01777532725
B14: 12 | C14: 软件园14#楼东侧修建临时停车场工程 | D14: 6.330275 | E14: 6.18 | K14: 0.150275 | N14: 0.02373909506
B15: 13 | C15: 智能制造龙江碳谷产业园增设铁艺围栏工程施工 | D15: 83.486239 | E15: 75.54 | K15: 7.946239 | N15: 0.09518022485
C16: 合 计 | D16: =SUM(D3:D15) -> 1437.489385 | E16: =SUM(E3:E15) -> 1367.345599 | F16: 3.43 | G16: =SUM(G3:G15) -> 0 | H16: =SUM(H3:H15) -> 2.10055 | I16: 40.37 | J16: -3.19 | K16: =D16-E16-F16-G16-H16-I16-J16 -> 27.433236 | L16: 1.6 | M16: =K16-L16 -> 25.833236 | N16: 0.01908413118

Sheet Sheet1
